bitfinex-derivatives/quotes_ETHF0:USTF0_20250126
["timestamp","ask_amount","ask_price","bid_price","bid_amount"]
[1737862731664,0.00185208,3337.6,3337.4,0.5109]
[1737862732067,0.60123208,3337.6,3337.4,0.5109]
[1737862732368,0.59939,3337.5,3337.3,3.6891]
[1737862732968,0.00185208,3337.6,3337.3,3.6891]
[1737862732969,0.60123208,3337.6,3337.3,3.6891]
[1737862733469,0.00185208,3337.6,3337.3,3.6891]
[1737862733668,0.00185208,3337.6,3337.5,0.59939]
[1737862733969,0.00185208,3337.6,3337.4,0.5994]
[1737862734765,0.00185208,3337.6,3337.3,3.6891]
[1737862735066,0.00185208,3337.6,3337.3,4.28852]
[1737862736063,0.00185208,3337.6,3337.4,0.59941]
[1737862737770,0.00185208,3337.6,3337.3,4.28852]
[1737862737959,0.00185208,3337.6,3337.3,3.6891]
[1737862738164,0.00185208,3337.6,3337.4,0.59941]
[1737862738566,0.00185208,3337.6,3337.3,4.28852]
[1737862739165,3.2078,3338.5,3337.5,2.0514089]
[1737862739366,0.4756,3338.8,3338.4,3.2078]
[1737862739969,1.07476,3338.8,3338.5,0.4869]
[1737862740165,0.4756,3338.8,3338.5,0.4869]
[1737862740378,0.59918,3338.7,3338.5,0.4869]
[1737862740869,0.4756,3338.8,3338.5,0.4869]
[1737862741068,0.59919,3338.7,3338.5,0.4869]
[1737862741269,1.07477,3338.8,3338.5,0.4869]
[1737862741465,0.4756,3338.8,3338.5,0.4869]
[1737862741668,1.07477,3338.8,3338.5,0.4869]
[1737862742071,0.4756,3338.8,3338.5,0.4869]
[1737862742475,0.4756,3338.8,3338.5,1.08611]
[1737862742676,0.4756,3338.8,3338.5,0.4869]
[1737862743175,3.2078,3339.1,3338.5,0.4869]
[1737862743373,3.2078,3339.1,3338.6,0.4754]
[1737862743374,0.59914,3339.0,3338.6,0.4754]
[1737862743576,0.59913,3339.0,3338.7,0.59917]
[1737862743880,3.2078,3339.1,3338.6,0.4754]
[1737862744077,0.993,3339.4,3338.8,3.2078]
[1737862744275,1.59206,3339.4,3338.9,0.59914]
[1737862744672,1.59206,3339.4,3339.0,0.59912]
[1737862745171,1.59206,3339.4,3338.8,3.2078]
[1737862745379,1.59206,3339.4,3338.9,0.59913]
[1737862745580,1.59206,3339.4,3339.0,0.59912]
[1737862746777,1.59205,3339.4,3338.8,3.2078]
[1737862747075,1.59205,3339.4,3339.0,0.59911]
[1737862747677,0.993,3339.4,3338.8,3.2078]
[1737862747878,3.2078,3339.6,3339.3,0.59906]
[1737862748082,3.2078,3339.6,3339.2,3.2078]
[1737862748381,3.80682,3339.6,3339.3,0.4815]
[1737862748784,3.2078,3339.6,3339.3,0.4815]
[1737862748978,3.2078,3339.6,3339.3,1.08057]
[1737862750082,3.80682,3339.6,3339.3,0.4815]
[1737862750282,3.2078,3339.6,3339.3,1.08057]
[1737862750679,3.80682,3339.6,3339.3,0.4815]
[1737862752484,3.2078,3339.6,3339.4,0.59905]
[1737862752687,3.2078,3339.6,3339.3,2.06026]
[1737862753885,0.59904,3339.5,3339.3,0.4815]
[1737862754288,2.0514089,3339.5,3339.2,3.2078]
[1737862754488,0.59907,3339.3,3339.2,3.2078]
[1737862754684,0.5991,3339.2,3338.9,0.23751959]
[1737862754886,1.4239,3339.4,3338.8,4.1876]
[1737862755088,2.02297,3339.4,3339.0,0.59912]
[1737862755389,1.55067,3339.4,3339.0,0.59912]
[1737862755591,1.55067,3339.4,3339.1,0.4958]
[1737862756383,0.9516,3339.4,3339.1,0.4958]
[1737862756589,0.472,3339.4,3339.1,1.0949]
[1737862756792,1.07106,3339.4,3339.2,3.2078]
[1737862757092,0.472,3339.4,3339.2,3.2078]
[1737862758596,0.59907,3339.3,3339.2,3.2078]
[1737862761287,1.07106,3339.4,3339.2,3.2078]
[1737862762391,0.472,3339.4,3339.2,3.2078]
[1737862762592,0.472,3339.4,3339.3,0.52]
[1737862764294,1.07105,3339.4,3339.2,3.2078]
[1737862764796,1.07106,3339.4,3339.2,3.2078]
[1737862764990,0.472,3339.4,3339.2,3.2078]
[1737862765800,0.472,3339.4,3339.2,3.80688]
[1737862766898,3.80682,3339.6,3339.3,0.495]
[1737862767090,4.29102,3339.6,3339.3,0.495]
[1737862767289,3.692,3339.6,3339.3,0.495]
[1737862767603,0.96246513,3339.5,3339.2,3.2078]
[1737862767897,3.692,3339.6,3339.2,3.2078]
[1737862768094,0.36341838,3339.5,3339.2,3.80688]
[1737862768291,0.64049562,3339.5,3339.2,3.2078]
[1737862768493,0.5215,3339.7,3339.3,2.0514089]
[1737862768702,0.5215,3339.7,3339.5,0.59904]
[1737862769101,1.08315,3340.0,3339.6,0.495]
[1737862769303,0.59899,3339.8,3339.6,0.495]
[1737862769498,0.59897,3339.9,3339.6,0.495]
[1737862769692,0.36385032,3339.8,3339.6,0.495]
[1737862769893,0.64100728,3339.9,3339.6,0.495]
[1737862771004,0.64100728,3339.9,3339.6,1.09401]
[1737862771497,0.64100728,3339.9,3339.8,0.59898]
[1737862771697,0.64100728,3339.9,3339.7,0.59899]
[1737862773898,0.64100728,3339.9,3339.6,3.7028]
[1737862774091,3.6865,3340.5,3339.7,0.59899]
[1737862774092,0.64078755,3339.8,3339.7,0.59899]
[1737862774503,1.23970755,3340.2,3339.7,0.59899]
[1737862774690,0.64078755,3340.1,3339.7,0.59899]
[1737862775305,0.64078755,3340.1,3340.0,0.59895]
[1737862775500,0.64078755,3340.1,3340.0,3.80675]
[1737862775699,0.64078755,3340.3,3340.0,3.80675]
[1737862775906,0.64078755,3340.2,3340.0,3.2078]
[1737862776097,0.64078755,3340.2,3340.1,0.4724]
[1737862776497,0.64078755,3340.3,3340.1,0.4724]
[1737862776806,0.64078755,3340.2,3340.1,0.4724]
[1737862777099,1.23969755,3340.2,3340.0,3.2078]
[1737862777307,0.64078755,3340.1,3340.0,3.2078]
[1737862777705,1.12083,3340.1,3340.0,3.2078]
[1737862777907,1.48455621,3340.1,3340.0,3.2078]
[1737862778105,0.88562621,3340.1,3340.0,3.2078]
[1737862778506,0.88527784,3340.1,3340.0,3.2078]
[1737862779409,0.5219,3340.1,3340.0,3.2078]
[1737862780505,1.12083,3340.1,3340.0,3.2078]
[1737862780903,0.5219,3340.1,3340.0,3.2078]
[1737862782708,1.12083,3340.1,3340.0,3.2078]
[1737862783409,0.5219,3340.1,3340.0,3.2078]
[1737862784801,1.16174424,3340.1,3340.0,3.2078]
[1737862785108,1.76067424,3340.1,3340.0,3.2078]
[1737862785702,0.63984424,3340.1,3340.0,3.2078]
[1737862787610,1.23877424,3340.1,3340.0,3.2078]
[1737862787915,0.59898,3339.8,3339.7,0.4724]
[1737862788297,1.23882424,3339.8,3339.7,0.4724]
[1737862789202,1.23882424,3339.8,3339.7,1.44129794]
[1737862790113,0.45352424,3339.8,3339.7,1.44129794]
[1737862790407,0.36319112,3339.9,3339.7,1.44129794]
[1737862791804,0.36319112,3339.9,3339.7,0.4724]
[1737862792202,0.59898,3339.9,3339.7,0.4724]
[1737862792407,0.36319112,3339.8,3339.7,0.4724]
[1737862792608,0.59896,3339.9,3339.7,0.4724]
[1737862793204,0.59896,3339.9,3339.7,0.9903]
[1737862793705,0.59898,3339.8,3339.7,0.9903]
[1737862795320,1.4764,3340.3,3339.7,0.9903]
[1737862795321,0.59897,3339.9,3339.7,0.9903]
[1737862795711,0.59895,3340.0,3339.7,0.9903]
[1737862797415,1.4764,3340.3,3339.7,0.9903]
[1737862797607,0.59898,3339.9,3339.7,0.9903]
[1737862797810,1.4764,3340.3,3339.7,0.9903]
[1737862798009,0.36394648,3340.2,3339.7,0.9903]
[1737862798208,0.59897,3339.9,3339.7,0.9903]
[1737862800109,0.36414699,3339.8,3339.7,0.9903]
[1737862800721,0.96312699,3339.8,3339.7,0.9903]
[1737862803814,0.96312699,3339.8,3339.7,0.4724]
[1737862804817,0.96312699,3339.8,3339.1,3.2078]
[1737862804818,0.36414699,3339.8,3339.1,3.2078]
[1737862805026,0.59907,3339.3,3339.2,0.5127]
[1737862805319,0.96321699,3339.3,3339.2,0.5127]
[1737862806720,0.96321699,3339.3,3338.6,4.184]
[1737862806721,0.59917,3338.8,3338.6,4.184]
[1737862807025,0.36414699,3339.3,3338.7,2.54975456]
[1737862807026,0.59907,3339.3,3338.7,2.54975456]
[1737862807323,0.59912,3339.1,3338.7,2.54975456]
[1737862807525,0.36395189,3339.0,3338.7,2.54975456]
[1737862808028,0.59913,3339.0,3338.7,2.54975456]
[1737862808716,3.2078,3339.4,3338.7,2.54975456]
[1737862808920,0.59916,3338.8,3338.7,0.5029]
[1737862810923,0.96278469,3338.8,3338.7,0.5029]
[1737862811427,0.59923,3338.4,3338.3,0.00449869]
[1737862813718,3.2078,3339.0,3338.3,1.00379869]
[1737862814029,0.59912,3339.1,3338.6,0.59919]
[1737862814525,0.5992,3338.6,3338.3,0.00449869]
[1737862814730,0.5992,3338.6,3338.4,0.5051]
[1737862814932,1.5125,3339.0,3338.4,0.5051]
[1737862815122,0.59918,3338.7,3338.4,0.5051]
[1737862815428,0.59918,3338.7,3338.6,3.2078]
[1737862819129,0.59914,3338.9,3338.4,0.5051]
[1737862819327,0.59922,3338.5,3338.4,0.5051]
[1737862821030,5.76265456,3339.0,3338.3,0.00449869]
[1737862821333,0.59923,3338.4,3338.3,0.00449869]
[1737862822630,0.59923,3338.4,3338.3,0.50059869]
[1737862823435,0.59923,3338.4,3338.3,0.00449869]
[1737862825532,3.2078,3339.0,3338.9,0.59914]
[1737862825734,5.25465456,3341.1,3338.9,5.25465456]
[1737862826037,5.25465456,3341.1,3339.8,3.2078]
[1737862826038,0.59884,3340.6,3339.8,3.2078]
[1737862826228,0.59892,3340.2,3339.8,3.2078]
[1737862826428,0.59892,3340.2,3339.9,0.00449176]
[1737862827123,0.508,3340.7,3339.9,0.00449176]
[1737862827327,0.5989,3340.3,3339.9,0.00449176]
[1737862829330,0.5989,3340.3,3340.1,3.2078]
[1737862830132,0.508,3340.7,3340.1,3.2078]
[1737862830329,0.5989,3340.3,3340.1,3.2078]
[1737862830531,0.508,3340.7,3340.1,3.2078]
[1737862830839,0.59887,3340.4,3340.1,3.2078]
[1737862832337,0.59884,3340.6,3340.1,3.2078]
[1737862832637,0.59891,3340.2,3340.1,3.2078]
[1737862833633,0.59891,3340.3,3340.1,3.2078]
[1737862834129,0.59891,3340.2,3340.1,3.2078]
[1737862835031,0.59891,3340.2,3338.0,0.3]
[1737862835032,0.59895,3340.0,3339.3,3.2078]
[1737862835233,0.5991,3339.2,3339.1,3.2078]
[1737862836440,0.59907,3339.3,3339.1,3.2078]
[1737862836639,0.59907,3339.3,3339.2,0.4986]
[1737862838640,2.05130045,3339.5,3339.1,3.2078]
[1737862838841,2.05130045,3339.5,3338.8,0.00449176]
[1737862838842,0.59914,3338.9,3338.8,0.00449176]
[1737862842739,5.25465456,3338.9,3338.2,3.2078]
[1737862842937,0.59925,3338.4,3338.2,3.6981]
[1737862843440,0.59919,3338.7,3338.2,3.6981]
[1737862843637,3.47715456,3339.2,3338.3,0.4751]
[1737862843839,0.5992,3338.7,3338.4,0.00449176]
[1737862844446,3.47715456,3339.2,3338.4,0.00449176]
[1737862844648,0.4753,3339.2,3338.6,3.2078]
[1737862844851,0.59916,3338.8,3338.6,3.2078]
[1737862845044,0.59916,3338.8,3338.7,0.4798]
[1737862847044,0.4753,3339.2,3338.6,3.2078]
[1737862847258,0.59918,3338.7,3338.6,3.2078]
[1737862847443,0.4753,3339.2,3338.4,0.00449176]
[1737862847444,0.59922,3338.5,3338.4,0.00449176]
[1737862853260,0.59921,3338.6,3338.4,0.00449176]
[1737862853453,3.2078,3338.9,3338.4,0.00449176]
[1737862853652,0.59922,3338.5,3338.4,0.00449176]
[1737862860159,0.59914,3338.9,3338.5,0.59921]
[1737862860366,0.59914,3338.9,3338.6,3.7159]
[1737862860547,0.59914,3338.9,3338.6,4.2083]
[1737862861152,3.688,3339.4,3338.6,4.2083]
[1737862861362,0.59916,3338.8,3338.6,4.2083]
[1737862862365,3.688,3339.4,3338.6,4.2083]
[1737862862664,0.59915,3338.9,3338.6,4.2083]
[1737862863361,3.688,3339.4,3338.6,4.2083]
[1737862863559,0.59907,3339.3,3338.6,4.2083]
[1737862863862,0.59917,3338.8,3338.6,4.2083]
[1737862867470,0.59917,3338.8,3338.7,2.04685456]
[1737862869369,3.688,3339.4,3338.7,2.04685456]
[1737862869565,3.2078,3339.4,3339.1,2.04685456]
[1737862869780,0.59906,3339.4,3339.2,0.9895]
[1737862870069,0.60348589,3339.5,3339.2,0.9895]
[1737862870274,0.60348589,3339.5,3339.4,2.04685456]
[1737862870471,0.00444589,3339.5,3339.4,5.25465456]
[1737862870670,0.00444589,3339.5,3339.4,5.77815456]
[1737862870874,0.00444589,3339.5,3339.4,6.37720456]
[1737862871573,0.00444589,3339.5,3339.4,5.77815456]
[1737862872773,0.4903,3340.3,3339.4,5.77815456]
[1737862872971,0.59895,3340.0,3339.8,2.04685456]
[1737862873279,3.80669,3340.4,3339.9,1.10905]
[1737862873468,0.59889,3340.3,3340.2,2.04685456]
[1737862874268,0.59889,3340.3,3340.2,5.25465456]
[1737862878176,0.59889,3340.4,3340.2,5.25465456]
[1737862878374,0.00449176,3340.6,3340.2,5.25465456]
[1737862878576,0.59889,3340.3,3340.2,5.25465456]
[1737862878776,0.59887,3340.5,3340.2,5.25465456]
[1737862879577,0.59888,3340.4,3340.2,5.25465456]
[1737862880279,0.59887,3340.5,3340.2,5.25465456]
[1737862880878,0.59888,3340.4,3340.2,5.25465456]
[1737862881674,0.59887,3340.5,3340.2,5.25465456]
[1737862882582,0.00449176,3340.6,3340.2,5.25465456]
[1737862882783,0.59888,3340.4,3340.2,5.25465456]
[1737862883383,0.00449176,3340.6,3340.2,5.25465456]
[1737862883683,0.60334176,3340.6,3340.2,5.25465456]
[1737862884179,0.00449176,3340.6,3340.2,5.25465456]
[1737862884484,0.59886,3340.5,3340.2,5.25465456]
[1737862886587,0.59888,3340.4,3340.2,5.25465456]
[1737862889591,0.60334176,3340.6,3340.2,5.25465456]
[1737862889780,0.00449176,3340.6,3340.2,5.85356456]
[1737862890181,0.00449176,3340.6,3340.5,2.04685456]
[1737862890987,0.60333176,3340.6,3340.5,2.04685456]
[1737862891191,0.00449176,3340.6,3340.5,2.04685456]
[1737862893389,0.00449176,3340.6,3340.5,2.64571456]
[1737862893595,0.001,3341.3,3340.5,7.04685456]
[1737862893894,0.001,3341.3,3341.1,3.2078]
[1737862894081,4.70402,3342.6,3341.2,1.0338]
[1737862894082,5.65202,3342.6,3341.2,1.0338]
[1737862894288,0.4892,3342.1,3341.6,5.25465456]
[1737862894482,0.59864,3341.7,3341.6,5.25465456]
[1737862895283,5.65202,3342.6,3341.6,5.25465456]
[1737862895284,3.2078,3342.6,3341.6,5.25465456]
[1737862895598,0.59857,3342.1,3342.0,2.04685456]
[1737862895987,0.59862,3341.9,3341.7,2.05134632]
[1737862896390,3.2078,3342.6,3341.7,2.05134632]
[1737862896594,0.59859,3342.0,3341.7,2.05134632]
[1737862896795,0.59859,3342.0,3341.8,0.4998]
[1737862897097,0.59859,3342.0,3341.9,0.4716]
[1737862899098,0.59861,3341.9,3341.8,0.4998]
[1737862899698,0.59862,3341.8,3341.7,2.05134632]
[1737862899897,1.12112,3341.8,3341.7,2.05134632]
[1737862903901,1.12112,3341.8,3341.7,0.00449176]
[1737862908004,8.7303,3341.8,3341.1,2.04685456]
[1737862908199,0.59873,3341.2,3341.1,2.04685456]
[1737862908702,0.5087,3341.6,3340.9,0.495]
[1737862908903,0.59877,3341.0,3340.9,0.495]
[1737862909104,0.59877,3341.0,3340.9,0.49949176]
[1737862909504,0.59877,3341.0,3340.9,0.00449176]
[1737862910003,0.59874,3341.2,3340.9,1.00659176]
[1737862910308,0.59872,3341.3,3341.1,2.04685456]
[1737862910493,0.00449176,3341.6,3341.1,2.04685456]
[1737862910698,0.59868,3341.5,3341.1,2.04685456]
[1737862911103,0.59868,3341.5,3341.3,3.2078]
[1737862911302,0.59868,3341.5,3341.4,2.04685456]
[1737862915112,0.59871,3341.3,3341.1,2.04685456]
[1737862915317,0.5987,3341.4,3341.1,2.04685456]
[1737862917611,0.59869,3341.5,3341.1,2.04685456]
[1737862917811,0.5987,3341.4,3341.1,2.04685456]
[1737862918823,0.59872,3341.3,3341.1,2.04685456]
[1737862919308,0.00449176,3341.6,3341.1,2.04685456]
[1737862919517,0.59875,3341.1,3341.0,0.4971]
[1737862920304,0.59877,3341.0,3340.9,0.00449176]
[1737862920601,0.59877,3341.0,3340.2,2.04685456]
[1737862920602,0.59889,3340.3,3340.2,2.04685456]
[1737862928318,0.59889,3340.4,3340.2,2.04685456]
[1737862928815,0.59889,3340.3,3340.2,2.04685456]
[1737862929213,0.59888,3340.4,3340.2,2.04685456]
[1737862929419,0.59889,3340.3,3340.2,2.04685456]
[1737862929612,0.59889,3340.3,3340.0,3.7236]
[1737862929813,0.5002,3340.7,3340.0,3.7236]
[1737862930014,0.59893,3340.1,3340.0,3.7236]
[1737862934230,0.59893,3340.1,3340.0,4.2274]
[1737862934737,0.5002,3340.7,3340.0,4.2274]
[1737862934934,0.59892,3340.2,3340.0,4.2274]
[1737862936236,0.59893,3340.1,3340.0,4.2274]
[1737862937733,0.59893,3340.1,3340.0,1.0196]
[1737862938439,3.708,3340.7,3340.0,1.0196]
[1737862938627,0.59892,3340.2,3340.0,4.2274]
[1737862939028,0.59892,3340.2,3340.0,1.0196]
[1737862939332,0.5002,3340.7,3340.0,1.0196]
[1737862939540,0.59889,3340.4,3340.1,3.2078]
[1737862939942,0.59885,3340.6,3340.1,3.80672]
[1737862940139,0.59885,3340.6,3340.2,2.64576456]
[1737862940935,0.59885,3340.6,3340.2,2.04685456]
[1737862941939,0.59887,3340.5,3340.2,2.04685456]
[1737862942540,0.59871,3341.4,3340.8,0.59879]
[1737862942741,4.1508,3341.9,3341.0,3.2078]
[1737862942931,4.1508,3341.9,3340.9,3.54715456]
[1737862943242,0.59874,3341.2,3340.9,3.54715456]
[1737862943639,0.59876,3341.1,3340.9,1.5003]
[1737862945736,0.9894,3341.5,3340.9,1.0212]
[1737862945942,4.1972,3341.5,3340.6,3.2078]
[1737862946141,0.59881,3340.8,3340.6,3.2078]
[1737862946542,4.1972,3341.5,3340.6,3.2078]
[1737862946837,0.59882,3340.7,3340.6,3.2078]
[1737862947237,1.49675,3341.4,3340.2,3.2078]
[1737862947445,0.59889,3340.4,3340.2,3.2078]
[1737862947635,2.0957,3341.0,3340.2,3.2078]
[1737862947840,0.5032,3340.9,3340.2,3.2078]
[1737862948041,0.59889,3340.3,3340.2,3.2078]
[1737862950242,0.59889,3340.3,3340.0,3.54555456]
[1737862950243,3.2078,3340.7,3340.0,3.54555456]
[1737862950546,0.59892,3340.2,3340.0,3.54555456]
[1737862950746,3.2078,3340.7,3340.0,3.54555456]
[1737862950947,0.59893,3340.2,3340.0,3.54555456]
[1737862952149,0.4911,3340.5,3339.9,3.21229176]
[1737862952451,0.4911,3340.5,3339.9,0.00449176]
[1737862952452,0.59895,3340.0,3339.9,0.00449176]
[1737862953154,0.94574412,3340.0,3339.9,0.00449176]
[1737862953350,3.2078,3340.7,3339.9,3.21229176]
[1737862953552,0.34669345,3340.6,3340.0,2.04685456]
[1737862953756,0.5989,3340.3,3340.0,2.04685456]
[1737862954648,0.59884,3340.6,3340.1,0.59892]
[1737862954855,0.59884,3340.6,3340.3,2.04685456]
[1737862955044,0.59884,3340.6,3340.4,0.9618]
[1737862955654,1.016,3341.0,3340.4,0.9618]
[1737862955847,0.59884,3340.6,3340.4,0.9618]
[1737862956243,4.1538,3341.5,3340.4,0.9618]
[1737862956452,0.59873,3341.3,3340.8,0.5988]
[1737862956652,0.34655879,3341.2,3340.9,2.56325456]
[1737862956856,0.59873,3341.3,3341.0,0.9883]
[1737862957554,3.2078,3341.5,3341.0,0.9883]
[1737862957752,0.59873,3341.2,3341.0,0.9883]
[1737862957948,0.59872,3341.3,3341.0,0.9883]
[1737862959253,3.2078,3341.5,3341.0,0.9883]
[1737862959460,0.59875,3341.1,3341.0,0.9883]
[1737862959757,3.2078,3341.5,3341.0,0.9883]
[1737862959960,0.59873,3341.3,3341.0,0.9883]
[1737862962460,0.59873,3341.2,3341.0,0.9883]
[1737862963561,0.59873,3341.3,3341.0,0.9883]
[1737862964855,3.2078,3341.5,3341.0,0.9883]
[1737862965159,0.00449176,3341.6,3341.5,0.59868]
[1737862965369,0.00449176,3341.6,3341.5,3.7125]
[1737862965659,0.59857,3342.1,3341.5,3.7125]
[1737862965870,1.09306,3342.2,3341.7,2.04685456]
[1737862966670,3.2078,3342.9,3342.2,0.59854]
[1737862966960,3.2078,3342.9,3341.6,2.05879176]
[1737862966961,3.2078,3342.9,3342.8,2.04685456]
[1737862969570,3.80623,3342.9,3342.8,2.04685456]
[1737862970871,3.80623,3342.9,3342.5,2.04685456]
[1737862970872,3.2078,3342.9,3342.5,2.04685456]
[1737862971161,0.59853,3342.3,3342.2,2.04685456]
[1737862973160,0.59859,3342.0,3341.9,2.04685456]
[1737862975065,0.5054,3342.2,3341.9,2.04685456]
[1737862975364,0.59858,3342.1,3341.9,2.04685456]
[1737862977072,3.2078,3342.5,3342.0,3.2078]
[1737862977363,3.8063,3342.5,3342.4,2.04685456]
[1737862979366,3.8063,3342.5,3342.1,2.04685456]
[1737862979864,0.59855,3342.3,3342.1,2.04685456]
[1737862980268,3.2078,3342.5,3342.1,2.04685456]
[1737862980563,0.59857,3342.1,3342.0,3.6872]
[1737862981166,3.2078,3342.5,3341.7,0.9922]
[1737862981167,0.59862,3341.8,3341.7,0.9922]
[1737862981467,3.2078,3342.5,3341.7,1.4881]
[1737862981660,0.59859,3342.0,3341.7,1.4881]
[1737862981858,0.59861,3341.9,3341.7,1.4881]
[1737862983167,3.2078,3342.5,3341.8,2.04685456]
[1737862983375,0.59855,3342.2,3342.1,2.04685456]
[1737862985061,3.2078,3342.5,3342.1,2.04685456]
[1737862985265,3.2078,3342.9,3342.4,2.04685456]
[1737862985465,3.80624,3342.9,3342.8,2.04685456]
[1737862985665,3.2078,3342.9,3342.5,3.56315456]
[1737862985869,0.59845,3342.8,3342.5,3.56315456]
[1737862987771,0.59853,3342.4,3342.2,2.04685456]
[1737862987962,1.0287,3342.7,3342.2,2.04685456]
[1737862988365,0.59852,3342.4,3342.2,2.04685456]
[1737862988762,1.0287,3342.7,3342.2,2.04685456]
[1737862988969,3.2078,3342.9,3342.6,2.04685456]
[1737862989168,3.2078,3342.9,3342.7,1.4913]
[1737862989374,0.59844,3342.8,3342.7,1.4913]
[1737862989571,3.2078,3342.9,3342.6,2.04685456]
[1737862989869,0.5985,3342.6,3342.3,2.04685456]
[1737862990579,0.59847,3342.7,3342.3,2.04685456]
[1737862990874,0.59848,3342.6,3342.3,2.04685456]
[1737862991075,3.2078,3342.9,3342.3,2.04685456]
[1737862991279,3.2078,3342.9,3342.6,2.04685456]
[1737862991470,0.59845,3342.8,3342.6,2.04685456]
[1737862991867,3.2078,3342.9,3342.6,2.04685456]
[1737862993973,3.80624,3342.9,3342.6,2.04685456]
[1737862994177,3.2078,3342.9,3342.6,2.04685456]
[1737862994566,0.59846,3342.7,3342.6,2.04685456]
[1737862994977,0.59846,3342.8,3342.6,2.04685456]
[1737862995578,3.2078,3342.9,3342.6,2.04685456]
[1737862995968,3.2078,3342.9,3342.3,2.04685456]
[1737862996173,3.2078,3342.9,3342.6,2.04685456]
[1737862996681,3.80623,3342.9,3342.7,0.4945]
[1737862996876,0.59845,3342.8,3342.7,0.4945]
[1737862998373,3.2078,3342.9,3342.7,0.4945]
[1737862998679,3.2078,3342.9,3342.8,0.9914]
[1737862999480,3.19083296,3342.9,3342.8,0.9914]
[1737863001181,3.19083296,3342.9,3342.8,1.58985]
[1737863001575,0.59836,3343.3,3342.8,0.9914]
[1737863001783,3.80616,3343.3,3343.2,2.04685456]
[1737863003475,3.2078,3343.3,3343.2,2.64522456]
[1737863003678,3.2078,3343.7,3343.2,7.04685456]
[1737863003979,0.59827,3343.8,3343.6,2.04685456]
[1737863004179,0.59819,3344.2,3343.6,2.04685456]
[1737863004480,0.34520387,3344.1,3343.6,2.04685456]
[1737863004784,0.59823,3344.0,3343.6,0.5983]
[1737863005079,3.2078,3344.3,3343.6,0.5983]
[1737863005284,0.59825,3343.9,3343.6,0.5983]
[1737863005582,0.59819,3344.2,3343.5,3.2078]
[1737863005783,0.59823,3344.0,3343.9,2.04685456]
[1737863013285,3.2078,3344.3,3343.9,2.04685456]
[1737863015296,3.2078,3344.3,3343.9,2.64510456]
[1737863015494,3.2078,3344.3,3343.9,2.64509456]
[1737863015694,3.2078,3344.3,3344.2,2.04685456]
[1737863015894,3.55299589,3344.3,3344.2,2.04685456]
[1737863016194,3.2078,3344.3,3344.2,2.04685456]
[1737863016382,0.4775,3344.4,3344.2,5.25465456]
[1737863016585,0.4775,3344.4,3344.2,5.85284456]
[1737863016794,0.4775,3344.4,3344.2,5.25465456]
[1737863017595,0.4775,3344.4,3344.2,5.85283456]
[1737863017797,0.4775,3344.4,3344.2,5.25465456]
[1737863018183,0.4775,3344.4,3344.3,0.59818]
[1737863018589,0.82241671,3344.4,3344.3,0.59818]
[1737863019693,0.82241671,3344.4,3344.2,5.85284456]
[1737863020095,0.82241671,3344.4,3344.3,0.59818]
[1737863020295,0.4775,3344.4,3344.3,0.59818]
[1737863025296,0.4962,3344.5,3344.4,0.59816]
[1737863025601,0.84104368,3344.5,3344.4,0.59816]
[1737863025896,0.4962,3344.5,3344.4,0.59816]
[1737863030402,0.4962,3344.5,3344.4,122.43816]
[1737863032108,0.5177,3344.9,3344.8,0.59809]
[1737863032307,0.86302376,3344.9,3344.8,5.85274456]
[1737863033812,0.86302376,3344.9,3344.8,3.79552493]
[1737863034104,0.86302376,3344.9,3344.8,4.39079477]
[1737863040113,0.86302376,3344.9,3344.8,3.79270477]
[1737863040305,0.86302376,3344.9,3344.8,4.39079477]
[1737863042108,0.34532376,3344.9,3344.8,4.39079477]
[1737863042309,0.81712376,3345.2,3344.8,4.39079477]
[1737863043010,0.34532376,3345.2,3345.1,2.04685456]
[1737863043713,0.475,3345.3,3345.2,0.59802]
[1737863044017,0.475,3345.3,3345.2,3.80582]
[1737863044519,0.82062513,3345.3,3345.2,3.80582]
[1737863044808,0.475,3345.3,3345.2,3.80582]
[1737863045013,0.475,3345.3,3345.2,3.2078]
[1737863046017,0.475,3345.3,3345.2,3.80582]
[1737863046418,0.34562513,3345.6,3345.2,3.80582]
[1737863046419,0.86082513,3345.6,3345.2,3.2078]
[1737863046614,0.86082513,3345.6,3345.5,2.04685456]
[1737863048213,0.86082513,3345.6,3345.3,0.59799]
[1737863048422,0.86082513,3345.6,3345.2,5.25465456]
[1737863048723,0.86082513,3345.6,3345.4,0.59797]
[1737863049020,0.86082513,3345.6,3345.5,0.59796]
[1737863052612,0.86082513,3345.6,3345.2,5.25465456]
[1737863052815,0.86082513,3345.6,3345.5,0.59796]
[1737863054820,0.86082513,3345.6,3345.5,2.64481456]
[1737863055122,0.5152,3345.6,3345.5,2.64481456]
[1737863055519,0.4958,3346.1,3345.5,2.04685456]
[1737863055822,0.9862,3346.0,3345.9,3.2078]
[1737863056023,1.33116068,3346.0,3345.9,3.2078]
[1737863061521,1.33116068,3346.0,3345.9,125.0478]
[1737863061825,0.34496068,3346.0,3345.9,125.64569]
[1737863062029,0.001,3346.2,3346.1,0.59785]
[1737863062323,0.001,3346.2,3346.1,2.64470456]
[1737863062732,0.001,3346.2,3346.1,3.15900456]
[1737863074339,0.001,3346.2,3346.1,8.15900456]
[1737863074537,0.001,3346.2,3346.1,3.15900456]
[1737863075736,0.34420849,3346.9,3346.8,0.59773]
[1737863075927,0.84590849,3347.0,3346.8,5.85237456]
[1737863076128,0.34420849,3347.0,3346.8,5.85237456]
[1737863076431,0.34420849,3347.1,3346.8,5.85237456]
[1737863076837,0.34420849,3347.1,3346.8,5.25465456]
[1737863077040,0.34420849,3347.2,3346.8,5.25465456]
[1737863078136,0.34420849,3347.2,3346.8,5.85238456]
[1737863078834,0.59763,3347.4,3346.8,5.85238456]
[1737863079237,0.59765,3347.3,3346.8,5.85238456]
[1737863079432,0.59765,3347.3,3347.2,3.2078]
[1737863080940,2.04685456,3347.9,3347.2,3.2078]
[1737863081142,0.59763,3347.4,3347.2,3.2078]